bitfinex/quotes_ETHUSD_20220120
["timestamp","ask_amount","ask_price","bid_price","bid_amount"]
[1642722028219,0.82984,3013.5,3013.1,2.8158319]
[1642722028418,0.82984,3013.5,3013.2,0.00341054]
[1642722028618,2.28551463,3013.5,3013.2,0.00341054]
[1642722029018,2.28551463,3013.5,3012.9,2.82057272]
[1642722029219,2.28551463,3013.5,3013.0,2.81545691]
[1642722029691,2.28551463,3013.5,3013.1,0.00397896]
[1642722030193,1.15673923,3013.4,3012.4,1.67721636]
[1642722030390,1.15673923,3013.4,3012.4,0.00795793]
[1642722030391,1.15651439,3012.9,3012.4,0.00795793]
[1642722030590,1.15651439,3012.9,3012.5,0.0073895]
[1642722030791,1.15651439,3012.9,3012.3,0.00852635]
[1642722031189,0.82993,3013.0,3012.9,1.35197798]
[1642722031391,1.22183955,3013.0,3012.9,1.35197798]
[1642722031589,1.22183955,3013.0,3012.9,1.16534761]
[1642722031789,2.48978,3013.1,3012.9,1.16534761]
[1642722034423,2.41707098,3013.0,3012.9,1.16534761]
[1642722035023,1.51316418,3013.0,3012.9,1.16534761]
[1642722035821,1.8,3012.9,3012.4,3.6501]
[1642722036024,1.8,3012.9,3011.7,1.66925843]
[1642722036025,2.63015,3012.9,3011.7,1.66925843]
[1642722036222,2.63015,3012.9,3012.5,0.00227369]
[1642722036223,2.49074,3012.7,3012.5,0.00227369]
[1642722036428,2.87174,3012.7,3012.5,0.00227369]
[1642722037268,2.87174,3012.7,3011.7,1.67607951]
[1642722037468,1.3052711,3012.4,3011.8,0.00625266]
[1642722037766,0.8302,3012.2,3011.8,0.00625266]
[1642722038767,0.8302,3012.1,3011.8,0.00625266]
[1642722038967,0.8302,3012.1,3011.7,1.67607951]
[1642722039168,0.83016,3012.0,3011.8,0.00625266]
[1642722039971,0.83016,3012.0,3011.5,3.8046]
[1642722040371,0.83016,3012.0,3011.6,0.00113685]
[1642722041015,0.83016,3012.0,3011.6,0.94547403]
[1642722041419,0.83021,3012.5,3011.6,0.94547403]
[1642722041420,0.83007,3012.4,3011.6,0.94547403]
[1642722041819,0.00284212,3012.3,3011.6,1.24547403]
[1642722042217,0.0022737,3012.2,3011.6,1.24547403]
[1642722042419,0.0022737,3012.2,3012.1,0.83928536]
[1642722042619,0.83006,3012.3,3012.1,0.83928536]
[1642722042818,0.83006,3012.3,3012.1,1.13928536]
[1642722043021,1.66013,3012.3,3012.1,1.13928536]
[1642722043420,1.66013,3012.3,3011.6,0.00113685]
[1642722043622,1.66037,3012.2,3011.6,0.00113685]
[1642722044021,0.83019,3012.0,3011.6,0.00113685]
[1642722044223,1.66036,3012.0,3011.6,0.00113685]
[1642722044670,1.66036,3012.0,3011.8,0.87461729]
[1642722044873,0.83017,3012.0,3011.8,0.87461729]
[1642722045272,0.83017,3012.0,3011.7,1.54700198]
[1642722045877,0.83017,3012.0,3011.7,1.84700198]
[1642722046276,0.00170527,3012.1,3012.0,0.92370019]
[1642722046575,2.49053,3012.2,3012.0,0.92370019]
[1642722047476,1.4747764,3012.1,3012.0,0.92370019]
[1642722048311,2.49053,3012.2,3012.0,0.92370019]
[1642722050018,2.49053,3012.2,3012.1,2.81621481]
[1642722050217,0.83018,3012.3,3012.1,2.81621481]
[1642722050419,0.0022737,3012.2,3012.1,2.81621481]
[1642722051318,0.7824537,3012.3,3012.1,2.81621481]
[1642722054369,2.4428537,3012.3,3012.1,2.81621481]
[1642722055471,0.7824537,3012.3,3012.1,2.81621481]
[1642722056714,1.33211218,3012.2,3012.1,2.81621481]
[1642722058515,2.16246218,3012.2,3012.1,2.81621481]
[1642722058921,1.33211218,3012.2,3012.1,2.81621481]
[1642722059874,2.4428537,3012.3,3012.1,2.81621481]
[1642722059875,0.7824537,3012.3,3012.1,2.81621481]
[1642722061778,0.83002,3012.7,3012.1,2.81621481]
[1642722062177,0.00113684,3012.4,3012.1,2.81621481]
[1642722062877,0.00113684,3012.4,3012.3,3.02877025]
[1642722063121,0.00113684,3012.4,3012.3,5.84498506]
[1642722065620,0.00113684,3012.4,3012.3,2.81621481]
[1642722066019,0.00113684,3012.4,3012.1,2.81621481]
[1642722066620,1.00913547,3012.3,3012.1,2.81621481]
[1642722067064,1.51064855,3012.4,3012.1,2.81621481]
[1642722067564,1.66134684,3012.4,3012.1,2.81621481]
[1642722067763,0.83124684,3012.4,3012.1,2.81621481]
[1642722067963,8.12346,3013.7,3012.1,2.81621481]
[1642722067964,1.61115684,3012.9,3012.2,3.15]
[1642722068165,0.83771596,3012.5,3012.3,2.81621481]
[1642722068365,0.83771596,3012.5,3012.4,2.81621481]
[1642722068564,2.03628431,3012.5,3012.4,2.81621481]
[1642722068964,2.03628431,3012.5,3012.2,0.00113685]
[1642722069165,0.83771596,3012.5,3012.2,0.00113685]
[1642722069572,0.83009,3012.6,3012.2,0.00113685]
[1642722069771,2.49038,3013.1,3012.2,0.00113685]
[1642722069976,1.66004,3012.9,3012.2,2.81735166]
[1642722070174,0.01287773,3012.8,3012.3,2.81621481]
[1642722070373,0.01287773,3012.8,3012.4,2.81621481]
[1642722070374,0.83018,3012.7,3012.4,2.81621481]
[1642722070621,0.83018,3012.7,3012.2,0.00113685]
[1642722070622,0.00170527,3012.7,3012.2,0.00113685]
[1642722070814,0.00113685,3012.6,3012.2,0.00113685]
[1642722071017,0.83024,3012.5,3012.1,0.00170527]
[1642722071215,1.21858936,3012.2,3012.1,0.00170527]
[1642722072917,1.21858936,3012.2,3011.5,3.8046]
[1642722072918,0.83044,3012.0,3011.5,3.8046]
[1642722073119,3.93759043,3012.0,3011.5,3.8046]
[1642722073418,1.66091,3011.9,3011.6,0.00284212]
[1642722073617,1.66091,3011.9,3011.0,0.3237438]
[1642722073815,1.52082046,3011.5,3011.0,0.3237438]
[1642722074021,0.83054,3011.4,3011.1,0.00284211]
[1642722074668,1.66108,3011.4,3011.1,0.00284211]
[1642722075068,3.32215,3011.4,3011.1,0.00284211]
[1642722076271,2.49161,3011.4,3011.1,0.00284211]
[1642722076476,0.83054,3011.4,3011.1,0.00284211]
[1642722077273,0.83054,3011.4,3011.3,0.01666142]
[1642722077672,0.83054,3011.4,3011.3,0.01836669]
[1642722079520,0.83031,3011.6,3011.3,0.01836669]
[1642722079922,0.83031,3011.6,3011.4,0.00113684]
[1642722080723,1.22337899,3011.5,3011.4,0.00113684]
[1642722082769,2.9,3011.3,3010.1,1.67187712]
[1642722082966,2.9,3011.3,3011.1,0.00170527]
[1642722082967,5.19236,3011.2,3011.1,0.00170527]
[1642722083163,5.19236,3011.2,3010.2,3.6584]
[1642722083164,19.37,3011.0,3010.2,3.6584]
[1642722083364,1.54051747,3010.5,3010.3,0.00454739]
[1642722083964,1.54051747,3010.5,3009.9,3.20369712]
[1642722083965,2.37127747,3010.5,3010.0,0.00625266]
[1642722084166,3.20203747,3010.5,3010.0,0.00625266]
[1642722084369,3.50203747,3010.5,3010.0,0.00625266]
[1642722084570,1.66159,3010.4,3010.0,0.00625266]
[1642722085173,4.15437,3010.4,3010.0,0.00625266]
[1642722085368,1.13091,3010.3,3010.0,0.00625266]
[1642722085630,3.32362,3010.3,3010.0,0.00625266]
[1642722086423,0.83089,3010.2,3010.0,0.00625266]
[1642722087023,1.21189,3010.2,3010.0,0.00625266]
[1642722087825,0.83089,3010.2,3010.0,0.00625266]
[1642722088025,2.49287,3010.2,3010.0,0.00625266]
[1642722089469,1.00037689,3010.1,3010.0,0.00625266]
[1642722090073,2.75037689,3010.1,3010.0,0.00625266]
[1642722090469,1.83135689,3010.1,3010.0,0.00625266]
[1642722091070,1.94717789,3010.4,3010.0,0.00625266]
[1642722091271,0.1328,3010.9,3010.1,0.14383254]
[1642722091469,4.1013,3011.7,3010.1,0.14383254]
[1642722091470,0.1328,3011.6,3010.1,0.14383254]
[1642722091672,0.1328,3011.6,3010.2,0.00511581]
[1642722091673,1.66136,3011.2,3010.2,0.00511581]
[1642722092370,1.66136,3011.2,3010.1,0.00568424]
[1642722092371,1.30561403,3010.5,3010.1,0.00568424]
[1642722092772,2.13636403,3010.5,3010.1,0.00568424]
[1642722092974,2.51736403,3010.5,3010.1,0.00568424]
[1642722093220,2.51736403,3010.5,3010.0,0.00625266]
[1642722093221,0.16516,3010.4,3010.0,0.00625266]
[1642722093423,1.24247693,3010.3,3010.0,0.00625266]
[1642722093625,0.381,3010.2,3010.0,0.00625266]
[1642722094025,19.67,3010.1,3010.0,0.00625266]
[1642722094324,0.381,3010.1,3010.0,0.00625266]
[1642722094724,0.54616,3010.1,3010.0,0.00625266]
[1642722094925,2.85,3009.9,3008.9,3.7375]
[1642722095131,0.67896,3009.8,3008.9,3.7375]
[1642722095323,0.67896,3009.8,3009.3,0.00397897]
[1642722095324,1.49275757,3009.7,3009.3,0.00397897]
[1642722095524,20.051,3009.6,3009.3,0.00397897]
[1642722095924,20.2013408,3009.2,3008.2,3.9109]
[1642722096127,0.381,3009.1,3008.2,3.9109]
[1642722096324,19.37,3008.8,3008.3,0.00568423]
[1642722096525,19.37,3008.6,3008.3,0.00568423]
[1642722096726,20.60140027,3008.5,3008.1,0.00682108]
[1642722096971,0.8315,3008.4,3008.1,0.00682108]
[1642722097171,19.37,3008.3,3008.1,0.00682108]
[1642722097371,0.381,3008.2,3008.1,0.00682108]
[1642722097572,20.35435997,3008.2,3008.1,0.00682108]
[1642722097776,2.65,3008.1,3007.5,5.83462421]
[1642722097974,1.2127265,3008.0,3007.5,5.83462421]
[1642722098174,2.49526,3007.9,3007.6,0.00284211]
[1642722098373,0.1328,3008.1,3007.6,0.00284211]
[1642722098374,0.83173,3008.1,3007.6,0.00284211]
[1642722098574,2.4947,3008.6,3007.6,0.00284211]
[1642722098773,0.381,3009.1,3007.6,3.86004211]
[1642722098973,0.0022737,3008.5,3007.6,3.86004211]
[1642722099175,2.55447185,3009.0,3007.7,0.00227369]
[1642722099375,0.00170527,3008.4,3008.0,1.08947252]
[1642722099578,1.20469151,3008.9,3007.7,0.00227369]
[1642722099579,1.66272,3008.5,3007.7,0.00227369]
[1642722099778,0.00113685,3008.3,3007.7,0.00227369]
[1642722099980,0.00170527,3008.4,3007.7,0.00227369]
[1642722100284,0.00113685,3008.3,3007.7,0.00227369]
[1642722100718,0.83138,3008.5,3007.7,0.00227369]
[1642722100719,0.00170527,3008.4,3007.8,1.23380964]
[1642722101119,0.00113685,3008.3,3007.9,0.00113684]
[1642722101520,1.6628,3008.6,3007.9,0.00113684]
[1642722101819,1.79553555,3008.5,3007.7,0.00227369]
[1642722102121,0.00170527,3008.4,3007.7,0.00227369]
[1642722102420,0.00113685,3008.3,3007.7,1.18941547]
[1642722102824,0.00170527,3008.4,3007.8,0.00170527]
[1642722103219,0.00113685,3008.3,3007.8,0.00170527]
[1642722103623,0.8314,3008.4,3007.8,0.00170527]
[1642722103820,0.8314,3008.4,3007.7,0.00227369]
[1642722104020,19.37113685,3008.3,3007.7,0.00227369]
[1642722104469,0.00113685,3008.3,3007.7,0.00227369]
[1642722104673,0.83142,3008.2,3007.7,0.00227369]
[1642722104876,0.3,3008.1,3007.7,0.00227369]
[1642722105069,2.494575,3008.2,3007.7,0.00227369]
[1642722105070,21.033015,3008.2,3007.7,0.00227369]
[1642722105270,0.83142,3008.2,3007.7,0.00227369]
[1642722105575,0.00113685,3008.3,3007.7,0.00227369]
[1642722105770,0.00113685,3008.3,3008.1,1.23100678]
[1642722106572,0.00113685,3008.3,3008.1,0.48100678]
[1642722106774,0.00113685,3008.3,3007.7,0.00227369]
[1642722106973,19.53594,3008.2,3007.7,0.00227369]
[1642722107172,19.66874,3008.2,3007.7,0.00227369]
[1642722107373,19.37,3008.1,3007.7,0.00227369]
[1642722107572,19.37,3007.9,3007.7,0.00227369]
[1642722107871,1.3273371,3007.9,3007.7,0.00227369]
[1642722109120,2.1589671,3007.9,3007.7,0.00227369]
[1642722109523,0.99897498,3007.8,3007.7,0.00227369]
[1642722109923,0.83163,3007.9,3007.7,0.00227369]
[1642722110125,0.83163,3008.0,3007.7,0.00227369]
[1642722110325,1.82924,3008.2,3007.7,0.00227369]
[1642722110326,0.83141,3008.2,3007.7,0.00227369]
[1642722111129,3.1064,3008.5,3007.6,2.28074895]
[1642722111326,3.1064,3008.5,3007.7,0.00227369]
[1642722111731,20.5972,3009.0,3007.7,0.00227369]
[1642722111970,0.83128,3008.7,3007.7,3.86737369]
[1642722112170,0.99722,3008.7,3007.7,3.86737369]
[1642722112372,0.83128,3008.7,3007.8,0.00170527]
[1642722113167,0.83131,3008.8,3007.8,0.00170527]
[1642722113372,0.13819997,3009.1,3007.8,2.32857667]
[1642722113568,0.13819997,3009.5,3008.0,0.11349143]
[1642722113769,0.12271238,3009.5,3008.0,2.83084424]
[1642722113974,6.8019,3009.8,3008.5,0.01224613]
[1642722113975,0.00397896,3009.0,3008.5,0.01224613]
[1642722114169,0.00397896,3009.0,3008.5,0.02773372]
[1642722114372,0.00341054,3008.9,3008.6,2.45584888]
[1642722114773,0.00284212,3008.8,3008.7,5.3816]
[1642722114973,4.212e-05,3008.8,3008.7,5.3816]
[1642722115175,4.212e-05,3008.8,3008.7,5.96562046]
[1642722115372,1.178,3010.5,3008.8,3.15]
[1642722115616,1.87983084,3010.2,3008.8,1.66155]
[1642722115817,0.83092,3010.0,3008.9,0.00223158]
[1642722116020,2.42136136,3009.7,3008.9,0.00223158]
[1642722116217,2.42136136,3009.7,3008.8,1.26598832]
[1642722116419,0.00174739,3009.6,3008.9,0.00223158]
[1642722116817,0.00117896,3009.5,3008.9,0.00223158]
[1642722117219,0.16594,3009.9,3008.9,0.00223158]
[1642722117422,0.83499108,3010.0,3008.9,0.00223158]
[1642722117423,0.00402108,3010.0,3008.9,0.00223158]
[1642722117619,0.00288423,3009.8,3009.4,0.94758048]
[1642722117819,0.16594,3010.6,3009.7,1.27894094]
[1642722117820,0.00345266,3009.9,3009.7,1.27894094]
[1642722118020,0.1328,3010.8,3009.7,1.27894094]
[1642722118221,0.17882371,3011.3,3009.8,3.7894]
[1642722118222,1.66133,3011.2,3009.8,3.7894]
[1642722118421,0.0068632,3010.5,3009.8,3.7894]
[1642722118824,0.00629477,3010.4,3009.8,3.7894]
[1642722119224,0.00572635,3010.3,3009.8,3.7894]
[1642722119471,0.00572635,3010.3,3009.9,1.3047086]
[1642722119671,0.00515793,3010.2,3009.9,1.3047086]
[1642722120070,0.0045895,3010.1,3009.9,2.1352686]
[1642722120271,0.0045895,3010.1,3009.9,1.3047086]
[1642722120470,0.00402108,3010.0,3009.9,1.3047086]
[1642722121471,0.00402108,3010.0,3009.8,3.7894]
[1642722121871,0.00345266,3009.9,3009.8,3.7894]
[1642722124522,0.00345266,3009.9,3008.9,0.00223158]
[1642722124523,0.16939266,3009.9,3008.9,0.00223158]
[1642722124723,0.83096,3009.7,3009.0,3.9564]
[1642722124921,1.39393008,3009.6,3009.0,3.9564]
[1642722125122,1.39393008,3009.6,3008.5,0.01548759]
[1642722125123,1.56161747,3009.6,3009.1,0.00109473]
[1642722125323,0.00117896,3009.5,3009.1,0.00109473]
[1642722125521,0.8311654,3009.4,3008.6,0.00393685]
[1642722125725,0.8311,3009.3,3008.6,0.00393685]
[1642722125925,0.83113,3009.1,3008.6,0.00393685]
[1642722126128,1.47180293,3009.0,3008.6,0.00393685]
[1642722126323,1.47180293,3009.0,3008.4,0.0050737]
[1642722126726,2.30305293,3009.0,3008.4,0.0050737]
[1642722126999,0.90009925,3008.8,3008.4,0.0050737]
[1642722127197,3.08432293,3009.0,3008.4,0.0050737]
[1642722127399,1.66249,3008.8,3008.4,0.0050737]
[1642722127599,0.67974,3009.7,3008.4,0.0050737]
[1642722127899,0.83223806,3009.5,3008.4,0.0050737]
[1642722128097,1.66221,3009.4,3008.4,0.0050737]
[1642722128301,1.66221,3009.4,3008.4,1.17583571]
[1642722128598,1.3582294,3009.0,3008.5,0.00450527]
[1642722129104,1.66217,3009.3,3008.4,0.0050737]
[1642722130298,2.4933,3009.3,3008.4,0.0050737]
[1642722130501,2.96489487,3009.3,3008.4,0.0050737]
[1642722131317,4.62710877,3009.3,3008.4,0.0050737]
[1642722131518,0.83124,3009.0,3008.4,0.0050737]
[1642722132323,3.68452144,3009.0,3008.4,0.0050737]
[1642722132519,1.66251,3008.9,3008.4,0.0050737]
[1642722132721,1.66251,3008.9,3007.7,0.00905266]
[1642722132722,19.37,3008.7,3007.7,0.00905266]
[1642722132920,1.42777989,3008.8,3007.8,0.00848424]
[1642722132921,19.37,3008.5,3007.8,0.00848424]
[1642722133124,19.37,3008.5,3007.3,3.7463]
[1642722133125,0.381,3008.4,3007.4,0.01075793]
[1642722133321,0.381,3008.4,3007.5,2.82103209]
[1642722133523,1.2124,3008.4,3007.5,2.82103209]
[1642722133724,1.2124,3008.4,3007.6,0.00962108]
[1642722133725,1.66297,3008.2,3007.6,0.00962108]
[1642722133923,1.21243,3008.2,3007.6,0.00962108]
[1642722134395,1.21243,3008.2,3007.5,0.01018951]
[1642722134595,2.0438,3008.2,3007.5,0.01018951]
[1642722134796,0.83147,3008.0,3007.4,0.01075793]
[1642722134995,0.83147,3008.0,3007.5,2.82100168]
[1642722135396,0.83147,3008.0,3007.6,0.00962108]
[1642722135596,2.74975708,3008.5,3007.7,2.82085903]
[1642722135597,2.04371,3008.5,3007.7,2.82085903]
[1642722135796,2.87507,3008.5,3007.7,2.82085903]
[1642722135997,2.87507,3008.5,3007.8,0.00848424]
[1642722136199,1.42901235,3009.2,3007.9,2.82085903]
[1642722136399,0.26091235,3009.2,3007.9,2.82085903]
[1642722136707,0.26091235,3009.2,3008.1,1.11395008]
[1642722136708,2.11937094,3009.0,3008.1,1.11395008]
[1642722137003,0.8313052,3008.7,3008.2,3.76011054]
[1642722137198,0.8313052,3008.7,3008.2,0.00621054]
[1642722137398,0.83124,3008.8,3008.3,0.00564212]
[1642722137598,0.83124,3008.8,3007.5,3.89748951]
[1642722137802,1.66241,3008.8,3007.6,2.83031994]
[1642722138000,1.92341235,3009.2,3007.6,2.83031994]
[1642722138001,0.26091235,3009.2,3007.9,0.01245563]
[1642722138220,0.26091235,3009.2,3008.0,2.82069886]
[1642722138423,0.26091235,3009.2,3008.0,2.82804625]
[1642722138621,0.26091235,3009.2,3008.1,2.82747783]
[1642722138820,1.02763688,3009.1,3008.1,0.00677897]
[1642722139120,0.83121,3008.9,3008.2,2.82057052]
[1642722139528,0.83121,3008.9,3008.3,0.00564212]
[1642722139925,1.92320235,3009.2,3008.4,2.82043523]
[1642722140327,1.92320235,3009.2,3008.5,0.00450527]
[1642722140528,1.27646292,3009.1,3008.5,0.00450527]
[1642722140728,1.27646292,3009.1,3008.6,0.00393685]
[1642722140729,0.83111,3009.0,3008.6,0.00393685]
[1642722140926,0.83111,3009.0,3008.1,1.20642072]
[1642722140927,0.83111,3009.0,3008.2,0.00621054]
[1642722141127,0.83111,3009.0,3008.3,2.82041211]
[1642722141527,0.83111,3009.0,3008.4,0.0050737]
[1642722142272,0.83111,3009.0,3008.2,0.00621054]
[1642722142273,0.83118,3008.9,3008.2,0.00621054]
[1642722142469,1.66233,3008.9,3008.2,0.00621054]
[1642722142671,0.83115,3008.9,3008.2,0.00621054]
[1642722142870,1.92320235,3009.2,3008.3,2.82043565]
[1642722143071,0.26091235,3009.2,3008.3,2.82043565]
[1642722143270,0.26091235,3009.2,3008.6,1.2137639]
[1642722143472,0.26091235,3009.2,3008.4,0.0050737]
[1642722143473,0.16594,3009.1,3008.4,0.0050737]
[1642722143672,0.16594,3009.1,3008.7,0.00336843]
[1642722143874,0.16594,3009.1,3008.0,2.82777797]
[1642722144072,0.16594,3009.1,3008.1,2.82043058]
[1642722144272,1.66234,3009.0,3008.1,2.82720955]
[1642722144479,1.52861135,3008.5,3008.2,0.00621054]
[1642722144879,1.52861135,3008.5,3007.8,0.00848424]
[1642722145076,1.52861135,3008.5,3007.7,0.00905266]
[1642722145276,0.8313168,3008.7,3007.8,2.82081295]
[1642722145717,0.83134,3008.5,3007.9,0.00791581]
[1642722145918,1.66267,3008.5,3007.9,0.00791581]
[1642722146317,1.66267,3008.5,3007.7,0.00905266]
[1642722146519,1.86031235,3009.2,3007.8,2.82073224]
[1642722146920,1.86031235,3009.2,3007.9,0.00791581]
[1642722147119,0.83111,3008.9,3008.0,2.82073224]
[1642722147319,1.08590387,3008.8,3008.0,2.82073224]
[1642722147527,1.08590387,3008.8,3008.1,1.38431274]
[1642722147723,0.83111,3008.9,3008.2,2.82073224]
[1642722148022,0.83103,3009.4,3008.3,0.00564212]
[1642722148222,0.83103,3009.4,3008.4,2.82038847]
[1642722148223,0.83106,3009.3,3008.4,2.82038847]
[1642722148621,0.83106,3009.3,3008.5,0.00450527]
[1642722148827,1.04513398,3009.1,3008.5,0.00450527]
[1642722149024,1.04513398,3009.1,3008.2,0.83721054]
[1642722149221,1.04513398,3009.1,3008.3,2.82037782]
[1642722149479,1.04513398,3009.1,3008.3,2.82601994]
[1642722149681,1.04513398,3009.1,3008.2,0.831]
[1642722149682,1.04513398,3009.1,3008.4,0.0050737]
[1642722149880,0.83106,3009.3,3008.4,0.0050737]
[1642722150082,0.83106,3009.3,3008.3,0.00564212]
[1642722150282,0.83106,3009.3,3008.4,0.83096]
[1642722150482,0.00117896,3009.5,3008.5,2.8201676]
[1642722150682,0.00117896,3009.5,3008.6,3.9513]
[1642722150883,0.00117896,3009.5,3008.9,1.16532816]
[1642722151281,0.00117896,3009.5,3009.0,0.00166316]
[1642722152482,0.75886725,3009.8,3009.1,1.8]
[1642722152685,0.75886725,3009.8,3009.0,0.00166316]
[1642722152883,0.83203685,3009.7,3009.2,0.00170527]
[1642722153127,0.83203685,3009.7,3009.0,0.00284212]
[1642722153319,0.00113685,3009.7,3009.0,0.00284212]
[1642722153519,0.00113685,3009.7,3008.8,0.16627]
[1642722153718,0.00113685,3009.7,3008.9,2.8200671]
[1642722153919,0.00113685,3009.7,3008.9,0.03579086]
[1642722154117,0.00113685,3009.7,3009.0,0.00284212]
[1642722154319,0.00113685,3009.7,3009.3,0.92972589]
[1642722154522,0.00113685,3009.7,3009.6,1.38586813]
[1642722154922,0.00113685,3009.7,3009.6,1.28586813]
[1642722156724,0.00113685,3009.7,3009.6,1.31789955]
[1642722156976,3.685e-05,3009.7,3009.6,4.01093142]
[1642722157176,6.7979,3011.7,3009.8,0.11153228]
[1642722157378,6.7979,3011.7,3010.0,0.10002613]
[1642722157576,0.0073895,3011.0,3010.0,0.10002613]
[1642722157777,0.0073895,3011.0,3009.9,0.20461342]
[1642722157979,0.00682108,3010.9,3010.5,1.32637399]
[1642722158376,0.00625266,3010.8,3010.5,1.32637399]
[1642722158578,0.00625266,3010.8,3010.5,1.6642889]
[1642722158776,3.1774,3012.1,3010.8,0.0062]
[1642722159175,0.01193689,3011.8,3010.8,0.0062]
[1642722159378,0.01193689,3011.8,3011.1,1.42981254]
[1642722159580,0.91754322,3011.9,3010.9,0.86311685]
[1642722159581,0.01136847,3011.7,3010.9,0.86311685]
[1642722159778,0.87891169,3011.9,3011.0,3.05]
[1642722159978,0.87891169,3011.9,3011.0,0.03869462]
[1642722160179,0.87891169,3011.9,3011.1,0.00397897]
[1642722160380,0.83035,3011.8,3011.1,0.00397897]
[1642722160635,2.57818039,3011.2,3010.6,0.00625266]
[1642722160822,0.83048,3011.5,3010.6,0.00625266]
[1642722161021,2.29874,3012.0,3010.3,1.17910501]
[1642722161022,0.14569704,3012.2,3010.4,0.00738951]
[1642722161222,2.28865238,3012.5,3010.4,0.18663878]
[1642722161423,0.00113684,3011.9,3010.4,0.18663878]
[1642722161722,0.83151684,3011.9,3010.5,0.00682108]
[1642722161924,1.30875305,3011.5,3010.5,0.00682108]
[1642722162120,0.83036,3011.8,3010.5,0.00682108]
[1642722162722,0.00113684,3011.9,3010.5,0.58802848]
[1642722162921,0.00113684,3011.9,3010.6,0.16627]
[1642722163340,0.00113684,3011.9,3011.4,1.29653426]
[1642722163539,0.00113684,3011.9,3011.5,0.00113685]
[1642722163737,0.00113684,3011.9,3011.6,0.09067041]
[1642722163937,0.00113684,3011.9,3011.6,0.5809525]
[1642722164140,3.684e-05,3011.9,3011.7,2.28761413]
[1642722164386,3.684e-05,3011.9,3011.8,3.31627]
[1642722164591,3.684e-05,3011.9,3011.8,3.64802022]
[1642722165294,4.26997768,3013.8,3012.3,0.5808279]
[1642722165295,0.01224627,3013.8,3012.3,0.5808279]
[1642722165490,0.21137922,3014.1,3012.4,1.01152759]
[1642722165691,0.0096632,3013.6,3012.6,0.0125655]
[1642722165896,0.0096632,3013.6,3012.7,20.99101693]
[1642722166089,0.00909478,3013.5,3012.9,5.0]
[1642722166296,0.00909478,3013.5,3013.0,1.11735865]
[1642722166297,9.478e-05,3013.5,3013.0,1.11735865]
[1642722166491,0.00852636,3013.4,3013.1,1.69845718]
[1642722166690,0.00852636,3013.4,3013.3,3.31627]
[1642722166890,0.03,3014.6,3013.2,0.03506491]
[1642722166891,0.00577901,3014.5,3013.2,0.00161049]
[1642722167091,0.1739318,3014.5,3013.3,0.00104207]
[1642722167290,0.85061794,3013.5,3012.8,0.00388418]
[1642722167490,0.85061794,3013.5,3012.7,0.00445261]
[1642722167690,0.85061794,3013.5,3012.8,0.00388418]
[1642722167889,0.16594,3014.1,3012.4,0.01548759]
[1642722167890,0.16594,3014.1,3012.6,0.00502103]
[1642722168155,2.14041276,3014.3,3012.5,0.17185945]
[1642722168156,0.3,3014.2,3012.5,0.17185945]
[1642722168345,0.14041276,3014.3,3012.5,0.17185945]
[1642722168346,0.0029369,3014.0,3012.5,0.17185945]
[1642722168544,0.00221279,3014.1,3012.6,0.00502103]
[1642722168545,0.00350532,3014.1,3012.6,0.00502103]
[1642722168740,0.00236847,3013.9,3012.6,0.00502103]
[1642722168941,0.0029369,3014.0,3013.2,1.52520946]
[1642722169142,0.00221279,3014.2,3013.2,1.52520946]
[1642722169143,0.00180005,3013.8,3013.2,1.52520946]
[1642722169343,0.00236847,3013.9,3013.3,0.00104207]
[1642722169545,0.00123163,3013.7,3013.3,0.00104207]
[1642722169752,0.00221279,3014.2,3013.3,0.00104207]
[1642722169753,0.00180005,3013.8,3013.3,0.00104207]
[1642722169946,0.00350532,3014.1,3013.3,0.00104207]
[1642722170146,0.00123163,3013.7,3013.3,0.00104207]
[1642722170349,0.0029369,3014.0,3013.3,0.00104207]
[1642722170548,0.00350532,3014.1,3013.3,0.00104207]
[1642722170749,0.00236847,3013.9,3013.3,0.00104207]
[1642722170947,0.0029369,3014.0,3013.3,0.00104207]
[1642722171151,0.00180005,3013.8,3013.3,0.00104207]
[1642722171348,0.00236847,3013.9,3013.7,1.51398316]
[1642722171649,0.00221279,3014.5,3013.7,1.51398316]
[1642722171891,0.03,3014.6,3013.8,2.66541675]
[1642722171892,0.00221279,3014.2,3013.8,2.66541675]
[1642722172092,0.00350532,3014.1,3013.8,2.69721881]
[1642722172291,0.00350532,3014.1,3013.9,0.92688654]
[1642722172490,0.0029369,3014.0,3013.9,1.26439963]
[1642722172690,3.69e-05,3014.0,3013.9,5.75328596]
[1642722172891,0.03,3014.6,3014.0,3.15]
[1642722173091,0.03,3014.6,3014.1,2.32651391]
[1642722173291,4.211e-05,3014.5,3014.1,2.47160117]
[1642722173493,4.211e-05,3014.5,3014.3,0.01225427]
[1642722173696,0.01021283,3015.9,3014.3,0.01225427]
[1642722173891,0.89535317,3015.7,3014.6,0.8917304]
[1642722174094,0.00743162,3015.8,3014.8,0.09224136]
[1642722174292,2.4997,3016.8,3014.9,0.16627]
[1642722174293,0.00850756,3015.6,3014.9,0.16627]
[1642722174493,0.0068632,3015.7,3015.6,1.09436839]
[1642722174794,0.00221279,3016.3,3015.6,1.09436839]
[1642722175195,0.00970531,3016.2,3015.6,1.09436839]
[1642722175650,0.00913689,3016.1,3015.6,1.09436839]
[1642722175840,0.00913689,3016.1,3015.7,2.40331268]
[1642722176043,0.00856847,3016.0,3015.8,0.08650555]
[1642722176246,0.00856847,3016.0,3015.7,0.08214403]
[1642722176442,0.00221279,3017.1,3015.6,1.95721119]
[1642722176443,0.00800004,3015.9,3015.6,1.95721119]
[1642722176843,0.00743162,3015.8,3015.6,1.92320839]
[1642722177242,0.0068632,3015.7,3015.6,1.96061515]
[1642722177442,0.0068632,3015.7,3015.6,2.12688515]
[1642722177845,0.0068632,3015.7,3015.6,1.09436839]
[1642722178049,0.0068632,3015.7,3015.0,3.6253]
[1642722178451,0.01920486,3015.6,3014.2,0.00166316]
[1642722178647,0.381,3015.5,3014.2,0.00166316]
[1642722178849,0.381,3015.5,3014.4,0.95700787]
[1642722178850,0.00221279,3015.4,3014.4,0.95700787]
[1642722179049,0.00737072,3015.4,3014.9,1.4373332]
[1642722179249,0.0045895,3015.3,3014.9,1.4373332]
[1642722179696,0.00221279,3015.7,3014.9,1.4373332]
[1642722179697,0.00402108,3015.2,3014.9,1.4373332]
[1642722179900,0.00402108,3015.2,3014.9,1.6036032]
[1642722180097,7.13381887,3016.4,3015.0,3.6326]
[1642722180098,0.00345266,3015.1,3015.0,3.6326]
[1642722180296,0.00345266,3015.1,3015.0,4.60805492]
[1642722180498,0.00345266,3015.1,3015.0,3.9326]
[1642722181505,0.00345266,3015.1,3015.0,6.40427609]
[1642722181506,5.266e-05,3015.1,3015.0,6.40427609]